bitfinex-derivatives/quotes_BTCF0:USTF0_20251111
["timestamp","ask_amount","ask_price","bid_price","bid_amount"]
[1762859433692,0.09868667,105340.0,105330.0,0.68358141]
[1762859434287,0.12100667,105340.0,105330.0,0.58861841]
[1762859434494,0.14374667,105340.0,105330.0,0.48290823]
[1762859434793,0.14274667,105340.0,105330.0,0.48290823]
[1762859435296,0.14274667,105340.0,105330.0,0.37719805]
[1762859435589,0.14274667,105340.0,105330.0,0.38797303]
[1762859435894,0.14074667,105340.0,105330.0,0.74785303]
[1762859436486,0.14074667,105340.0,105330.0,0.84281603]
[1762859437190,0.14074667,105340.0,105330.0,0.74785303]
[1762859437998,0.14074667,105340.0,105330.0,0.84281603]
[1762859438298,0.14074667,105340.0,105330.0,0.38797303]
[1762859438993,0.14074667,105340.0,105330.0,0.38804675]
[1762859439193,0.24653057,105340.0,105330.0,0.38804675]
[1762859439400,0.14074667,105340.0,105330.0,0.38804675]
[1762859440285,0.14074667,105340.0,105330.0,0.48300975]
[1762859440798,0.14074667,105340.0,105330.0,0.38804675]
[1762859441306,0.14074667,105340.0,105330.0,0.28226285]
[1762859441595,0.14074667,105340.0,105330.0,0.38804675]
[1762859441802,0.14074667,105340.0,105330.0,0.24486438]
[1762859442303,0.24653057,105340.0,105330.0,0.24486438]
[1762859445697,0.14074667,105340.0,105330.0,0.24486438]
[1762859450002,0.14074667,105340.0,105330.0,0.33982738]
[1762859451304,0.14074667,105340.0,105330.0,0.48159107]
[1762859452207,0.09568667,105340.0,105330.0,0.37580717]
[1762859452406,0.09568667,105340.0,105330.0,0.48159107]
[1762859452607,0.11895667,105340.0,105330.0,0.48159107]
[1762859453811,0.14017667,105340.0,105330.0,0.48159107]
[1762859454000,0.14017667,105340.0,105330.0,0.37580717]
[1762859454206,0.14017667,105340.0,105330.0,0.48159107]
[1762859454512,0.14017667,105340.0,105330.0,0.38662807]
[1762859455604,0.24908057,105340.0,105330.0,0.37288807]
[1762859456511,0.24908057,105340.0,105330.0,0.38620807]
[1762859458814,0.24908057,105340.0,105330.0,0.28042417]
[1762859459219,0.24908057,105340.0,105330.0,0.38620807]
[1762859460218,0.24908057,105340.0,105330.0,0.28042417]
[1762859461008,0.35486447,105340.0,105330.0,0.26490614]
[1762859461219,0.35486447,105340.0,105330.0,0.12314245]
[1762859461706,0.35486447,105340.0,105330.0,0.07798245]
[1762859462101,0.35486447,105340.0,105330.0,0.10070245]
[1762859462309,0.35586447,105340.0,105330.0,0.10070245]
[1762859462517,0.35686447,105340.0,105330.0,0.10070245]
[1762859463418,0.35686447,105340.0,105330.0,0.07798245]
[1762859463603,0.48686447,105340.0,105330.0,0.07656521]
[1762859465307,0.1535229,105330.0,105320.0,3e-08]
[1762859465521,0.1535319,105320.0,105310.0,0.02295738]
[1762859465817,0.36583237,105320.0,105310.0,0.00023738]
[1762859466814,0.36583237,105320.0,105310.0,0.02295738]
[1762859467316,0.153541,105310.0,105300.0,0.04496492]
[1762859467507,0.61997757,105310.0,105300.0,0.04496492]
[1762859468009,0.61997757,105310.0,105300.0,0.07035107]
[1762859468210,0.61997757,105310.0,105300.0,0.17613497]
[1762859468611,0.62097757,105310.0,105300.0,0.17613497]
[1762859469619,0.61997757,105310.0,105300.0,0.17613497]
[1762859469920,0.62097757,105310.0,105300.0,0.07035107]
[1762859470715,0.61997757,105310.0,105300.0,0.07035107]
[1762859471319,0.62097757,105310.0,105300.0,0.07035107]
[1762859471618,0.62197757,105310.0,105300.0,0.06815304]
[1762859472214,0.62197757,105310.0,105300.0,0.07035107]
[1762859472518,0.62197757,105310.0,105300.0,0.05471304]
[1762859474220,0.62197757,105310.0,105300.0,0.00982322]
[1762859474726,0.62197757,105310.0,105300.0,0.05453322]
[1762859475419,0.62197757,105310.0,105300.0,0.03254322]
[1762859475420,0.6220954,105310.0,105300.0,0.03254322]
[1762859475626,0.6220954,105310.0,105300.0,0.05453322]
[1762859479121,0.1432415,105310.0,105300.0,0.37672905]
[1762859479328,0.4811315,105310.0,105300.0,0.37672905]
[1762859479528,0.1211315,105310.0,105300.0,0.37672905]
[1762859480130,0.1432415,105310.0,105300.0,0.37672905]
[1762859480331,0.1422415,105310.0,105300.0,0.37672905]
[1762859481220,0.1412415,105310.0,105300.0,0.37672905]
[1762859481928,0.1412415,105310.0,105300.0,0.17595515]
[1762859482323,0.1412415,105310.0,105300.0,0.27094515]
[1762859482528,0.1412415,105310.0,105300.0,0.37672905]
[1762859482724,0.1412415,105310.0,105300.0,0.27094515]
[1762859482924,0.1412415,105310.0,105300.0,0.37672905]
[1762859484628,0.1412415,105310.0,105300.0,0.07017125]
[1762859484834,0.1412415,105310.0,105300.0,0.17595515]
[1762859485334,0.1412415,105310.0,105300.0,0.27094515]
[1762859487034,0.1412415,105310.0,105300.0,0.07017125]
[1762859487236,0.2470254,105310.0,105300.0,0.17595515]
[1762859487427,0.2600354,105310.0,105300.0,0.17595515]
[1762859487625,0.2600354,105310.0,105300.0,0.27094515]
[1762859487825,0.2600354,105310.0,105300.0,0.17595515]
[1762859488127,0.2470254,105310.0,105300.0,0.17595515]
[1762859490131,0.1412415,105310.0,105300.0,0.27094515]
[1762859490434,0.2470254,105310.0,105300.0,0.27094515]
[1762859491029,0.0462605,105310.0,105300.0,0.37672905]
[1762859491238,0.0008505,105310.0,105300.0,0.37672905]
[1762859491435,0.0958315,105310.0,105300.0,0.37672905]
[1762859492031,0.1189215,105310.0,105300.0,0.37672905]
[1762859492537,0.1412215,105310.0,105300.0,0.37672905]
[1762859496933,0.1412215,105310.0,105300.0,0.4957088]
[1762859497536,0.0958315,105310.0,105300.0,0.4957088]
[1762859498343,0.1189215,105310.0,105300.0,0.4957088]
[1762859498536,0.0008505,105310.0,105300.0,0.73377484]
[1762859498940,0.0949793,105320.0,105300.0,0.73377484]
[1762859498941,0.0949793,105320.0,105310.0,0.152461]
[1762859499140,0.09571197,105320.0,105310.0,0.26044293]
[1762859499537,0.11880197,105320.0,105310.0,0.62040293]
[1762859499737,0.14110197,105320.0,105310.0,0.62040293]
[1762859500644,0.14210197,105320.0,105310.0,0.62040293]
[1762859500944,0.14210197,105320.0,105310.0,0.62043503]
[1762859501130,0.14310197,105320.0,105310.0,0.62043503]
[1762859501335,0.00273267,105320.0,105310.0,0.76240891]
[1762859501532,0.00273267,105320.0,105310.0,0.85736214]
[1762859501735,0.00273267,105320.0,105310.0,0.97634189]
[1762859503839,0.12079467,105320.0,105310.0,0.97634189]
[1762859504045,0.14309467,105320.0,105310.0,0.97634189]
[1762859504247,0.14309467,105320.0,105310.0,0.87052589]
[1762859504546,0.14309467,105320.0,105310.0,0.97634189]
[1762859505640,0.14309467,105320.0,105310.0,0.87052589]
[1762859505840,0.14309467,105320.0,105310.0,0.77557266]
[1762859506043,0.14309467,105320.0,105310.0,0.88138866]
[1762859506848,0.14309467,105320.0,105310.0,0.77557266]
[1762859507143,0.14309467,105320.0,105310.0,0.77553266]
[1762859507351,0.00273267,105320.0,105310.0,0.97630189]
[1762859508143,0.09770467,105320.0,105310.0,0.97630189]
[1762859508646,0.00273267,105320.0,105310.0,0.97630189]
[1762859508846,0.00273267,105320.0,105310.0,0.85732214]
[1762859509248,0.09770467,105320.0,105310.0,0.85732214]
[1762859510748,0.00273267,105320.0,105310.0,0.85732214]
[1762859512849,0.09770467,105320.0,105310.0,0.85732214]
[1762859514351,0.09770467,105320.0,105310.0,0.9333719]
[1762859516052,0.00273267,105320.0,105310.0,0.9333719]
[1762859517754,0.09770467,105320.0,105310.0,0.9333719]
[1762859519353,0.12011467,105320.0,105310.0,0.9333719]
[1762859519656,0.14278467,105320.0,105310.0,0.9333719]
[1762859520555,0.14278467,105320.0,105310.0,0.83837857]
[1762859520756,0.14278467,105320.0,105310.0,0.95752582]
[1762859520952,0.14278467,105320.0,105310.0,0.86254492]
[1762859521152,0.14278467,105320.0,105310.0,0.95752582]
[1762859521657,0.14278467,105320.0,105310.0,0.86254492]
[1762859521860,0.14278467,105320.0,105310.0,0.95752582]
[1762859524067,0.14278467,105320.0,105310.0,0.86254492]
[1762859524368,0.14278467,105320.0,105310.0,0.95752582]
[1762859524570,0.11914467,105320.0,105310.0,0.95752582]
[1762859524961,0.11914467,105320.0,105310.0,0.83837857]
[1762859525263,0.11914467,105320.0,105310.0,0.73256257]
[1762859525470,0.00273267,105320.0,105310.0,0.83837857]
[1762859525661,0.09770457,105320.0,105310.0,0.83837857]
[1762859531474,0.11914457,105320.0,105310.0,0.83837857]
[1762859531975,0.14181457,105320.0,105310.0,0.83837857]
[1762859533772,0.14181457,105320.0,105310.0,0.85175902]
[1762859533972,0.14181457,105320.0,105310.0,0.95757502]
[1762859534376,0.14181457,105320.0,105310.0,0.86259412]
[1762859534780,0.14181457,105320.0,105310.0,0.95757502]
[1762859535482,0.14181457,105320.0,105310.0,0.86259412]
[1762859535882,0.14181457,105320.0,105310.0,0.95757502]
[1762859540487,0.14181457,105320.0,105310.0,0.83837857]
[1762859544090,0.14181457,105320.0,105310.0,0.73256257]
[1762859544282,0.14181457,105320.0,105310.0,0.74339767]
[1762859544487,0.14181457,105320.0,105310.0,0.66734791]
[1762859545986,0.14181457,105320.0,105310.0,0.76232891]
[1762859546289,0.14181457,105320.0,105300.0,0.30824967]
[1762859546290,0.05754,105310.0,105300.0,0.29480967]
[1762859546589,0.1395291,105290.0,105280.0,0.2360741]
[1762859546787,0.09573177,105290.0,105280.0,0.37930858]
[1762859546993,0.00073267,105290.0,105280.0,0.62771815]
[1762859547385,0.09573177,105290.0,105280.0,1.02771815]
[1762859547895,0.14026177,105290.0,105280.0,0.93371005]
[1762859548093,0.11747177,105290.0,105280.0,1.02871815]
[1762859548396,0.11747177,105290.0,105280.0,1.03071815]
[1762859548595,0.09573177,105290.0,105280.0,1.03071815]
[1762859548791,0.09573177,105290.0,105280.0,1.02971815]
[1762859550095,0.09573177,105290.0,105280.0,1.02871815]
[1762859550288,0.11747177,105290.0,105280.0,1.02871815]
[1762859550693,0.09573177,105290.0,105280.0,1.02871815]
[1762859550895,0.14026177,105290.0,105280.0,1.02871815]
[1762859551381,0.11747177,105290.0,105280.0,1.02871815]
[1762859551894,0.09573177,105290.0,105280.0,1.02871815]
[1762859555497,0.11747177,105290.0,105280.0,1.02871815]
[1762859555901,0.11747177,105290.0,105280.0,0.93371005]
[1762859556601,0.11747177,105290.0,105280.0,0.9095217]
[1762859557392,0.11747177,105290.0,105280.0,1.02871815]
[1762859558406,0.09573177,105290.0,105280.0,1.02871815]
[1762859560500,0.00073267,105290.0,105280.0,0.9095217]
[1762859560701,0.09513245,105300.0,105290.0,0.146399]
[1762859560903,0.00087512,105300.0,105290.0,0.83942406]
[1762859561102,0.09586512,105300.0,105290.0,0.98125764]
[1762859561405,0.00087512,105300.0,105290.0,1.07623793]
[1762859561602,0.00014245,105300.0,105290.0,1.07623793]
[1762859562103,2.45e-06,105300.0,105290.0,1.07623793]
[1762859562508,2.45e-06,105300.0,105290.0,0.95704148]
[1762859562804,0.1395047,105320.0,105310.0,0.152071]
[1762859562997,0.15023737,105320.0,105310.0,0.62026432]
[1762859563691,0.15023737,105320.0,105310.0,0.52528332]
[1762859564200,0.15023737,105320.0,105310.0,0.62026432]
[1762859564404,0.15123737,105320.0,105310.0,0.62026432]
[1762859565110,0.15123737,105320.0,105310.0,0.76286364]
[1762859565315,0.15223737,105320.0,105310.0,0.76286364]
[1762859565609,0.10770467,105320.0,105310.0,0.96365226]
[1762859565802,0.09510855,105330.0,105320.0,0.152202]
[1762859565997,0.00014245,105330.0,105320.0,0.36607061]
[1762859566202,0.00014245,105330.0,105320.0,0.62786687]
[1762859566408,0.00014245,105330.0,105320.0,0.7228201]
[1762859566607,0.09510545,105330.0,105320.0,0.7228201]
[1762859567002,0.09810545,105330.0,105320.0,0.7228201]
[1762859567311,0.10010545,105330.0,105320.0,0.7228201]
[1762859568911,0.00514245,105330.0,105320.0,0.7228201]
[1762859569106,0.0002278,105350.0,105340.0,0.152044]
[1762859569303,0.0319678,105350.0,105340.0,0.72627261]
[1762859569504,0.0102278,105350.0,105340.0,0.86872917]
[1762859570010,0.0102278,105350.0,105340.0,0.98750842]
[1762859570209,0.0132278,105350.0,105340.0,0.98750842]
[1762859570407,0.0132278,105350.0,105340.0,1.08245264]
[1762859570809,0.0102278,105350.0,105340.0,1.08345264]
[1762859571410,0.0142278,105350.0,105340.0,1.08345264]
[1762859571609,0.1544828,105350.0,105340.0,1.08345264]
[1762859571806,0.1544828,105350.0,105340.0,0.52230335]
[1762859572008,0.1504828,105350.0,105340.0,0.66889988]
[1762859572210,0.1504828,105350.0,105340.0,0.66989988]
[1762859573413,0.1504828,105350.0,105340.0,0.76485388]
[1762859575113,0.1504828,105350.0,105340.0,0.87068917]
[1762859576414,0.1504828,105350.0,105340.0,0.76477388]
[1762859577416,0.1504828,105350.0,105340.0,0.87060917]
[1762859579609,0.1504828,105350.0,105340.0,0.65893859]
[1762859579804,0.1504828,105350.0,105340.0,0.87060917]
[1762859580607,0.1641728,105350.0,105340.0,0.66981988]
[1762859580811,0.27000809,105350.0,105340.0,0.19030459]
[1762859581012,0.27000809,105350.0,105340.0,0.04784803]
[1762859581315,0.1641728,105350.0,105340.0,0.04784803]
[1762859581510,0.27000809,105350.0,105340.0,0.04784803]
[1762859582016,0.27000809,105350.0,105340.0,0.04365]
[1762859582714,0.1641728,105350.0,105340.0,0.04365]
[1762859582916,0.27000809,105350.0,105340.0,0.02184]
[1762859583210,0.27000809,105350.0,105340.0,0.04474]
[1762859589022,0.27000809,105350.0,105340.0,0.12258]
[1762859591823,0.27000809,105350.0,105340.0,0.07784]
[1762859592025,0.37584338,105350.0,105340.0,0.07784]
[1762859592421,0.27000809,105350.0,105340.0,0.07784]
[1762859593137,0.27300809,105350.0,105340.0,0.07784]
[1762859595537,0.69884338,105350.0,105340.0,1e-07]
[1762859596739,0.141784,105340.0,105330.0,0.08804245]
[1762859596935,0.74377458,105340.0,105330.0,0.08804245]
[1762859597137,0.71377458,105340.0,105330.0,0.08804245]
[1762859597330,0.138862,105320.0,105310.0,0.16477529]
[1762859597532,0.24469729,105320.0,105310.0,0.16697332]
[1762859597926,0.24469729,105320.0,105300.0,0.13194925]
[1762859597927,0.72387258,105320.0,105300.0,0.13194925]
[1762859598241,0.138871,105310.0,105300.0,0.16684577]
[1762859598442,0.138871,105310.0,105300.0,0.26183587]
[1762859599333,0.138871,105310.0,105300.0,0.26383587]
[1762859599739,0.138871,105310.0,105300.0,0.26583587]
[1762859599941,0.138871,105310.0,105300.0,0.26383587]
[1762859600426,0.138871,105310.0,105300.0,0.26183587]
[1762859601031,0.138871,105310.0,105300.0,0.16684577]
[1762859601441,0.24470629,105310.0,105300.0,0.16684577]
[1762859601739,0.24470629,105310.0,105300.0,0.06101048]
[1762859601934,0.24470629,105310.0,105300.0,0.16684577]
[1762859604539,0.138871,105310.0,105300.0,0.26183587]
[1762859604743,0.24470629,105310.0,105300.0,0.26183587]
[1762859606541,0.138871,105310.0,105300.0,0.26183587]
[1762859606743,0.24470629,105310.0,105300.0,0.26183587]
[1762859608347,0.094981,105310.0,105300.0,0.36767116]
[1762859608738,0.117521,105310.0,105300.0,0.36767116]
[1762859608938,0.094981,105310.0,105300.0,0.36767116]
[1762859609542,0.117521,105310.0,105300.0,0.36767116]
[1762859610247,0.140181,105310.0,105300.0,0.36767116]
[1762859610752,0.140181,105310.0,105300.0,0.26183587]
[1762859612146,0.140181,105310.0,105300.0,0.16684577]
[1762859612541,0.24601629,105310.0,105300.0,0.16684577]
[1762859612948,0.140181,105310.0,105300.0,0.36767116]
[1762859614440,0.00014245,105320.0,105310.0,0.05581]
[1762859614645,0.00014245,105320.0,105310.0,0.72505971]
[1762859614844,0.1401576,105340.0,105330.0,0.150773]
[1762859615049,0.1401576,105340.0,105330.0,0.25880632]
[1762859615050,0.07,105340.0,105330.0,0.25880632]
[1762859615456,0.1152,105340.0,105330.0,0.25880632]
[1762859616541,0.09254,105340.0,105330.0,0.25880632]
[1762859617750,0.09254,105340.0,105330.0,0.25980632]
[1762859618054,0.09254,105340.0,105330.0,0.26080632]
[1762859618256,0.07,105340.0,105330.0,0.35574152]
[1762859619648,0.07,105340.0,105330.0,0.71622152]
[1762859619850,0.00037025,105350.0,105340.0,0.150764]
[1762859620050,0.16291025,105350.0,105340.0,0.25879732]
[1762859620253,0.16291025,105350.0,105340.0,0.40044997]
[1762859620848,0.16291025,105350.0,105340.0,0.40037343]
[1762859620849,0.14037025,105350.0,105340.0,0.40037343]
[1762859621343,0.16291025,105350.0,105340.0,0.40037343]
[1762859621550,0.14037025,105350.0,105340.0,0.40037343]
[1762859623958,0.14037025,105350.0,105340.0,0.49529962]
[1762859626648,0.28051525,105350.0,105340.0,0.49529962]
[1762859627053,0.28051525,105350.0,105340.0,0.38954087]
[1762859627256,0.28051525,105350.0,105340.0,0.49529962]
[1762859628768,0.16291025,105350.0,105340.0,0.49529962]
[1762859628964,0.14037025,105350.0,105340.0,0.49529962]
[1762859629258,0.16291025,105350.0,105340.0,0.49529962]
[1762859629561,0.14037025,105350.0,105340.0,0.49529962]
[1762859630860,0.23531525,105350.0,105340.0,0.49529962]
[1762859631064,0.14037025,105350.0,105340.0,0.49529962]
[1762859631765,0.16217025,105350.0,105340.0,0.49529962]
[1762859634374,0.25711525,105350.0,105340.0,0.49529962]
[1762859634671,0.16217025,105350.0,105340.0,0.49529962]
[1762859636376,0.18442025,105350.0,105340.0,0.49529962]
[1762859637275,0.27936525,105350.0,105340.0,0.49529962]
[1762859637475,0.18442025,105350.0,105340.0,0.49529962]
[1762859640676,0.27936515,105350.0,105340.0,0.49529962]
[1762859640978,0.18442025,105350.0,105340.0,0.49529962]
[1762859641179,0.27936515,105350.0,105340.0,0.49529962]
[1762859641583,0.27936515,105350.0,105340.0,0.61407887]
[1762859643081,0.18442025,105350.0,105340.0,0.61407887]
[1762859643576,0.14037025,105350.0,105340.0,0.61407887]
[1762859643880,0.16249025,105350.0,105340.0,0.61407887]
[1762859644180,0.14037025,105350.0,105340.0,0.61407887]
[1762859644779,0.14037025,105350.0,105340.0,0.69191887]
[1762859649005,0.16249025,105350.0,105340.0,0.69191887]
[1762859649388,0.16249025,105350.0,105340.0,0.73582887]
[1762859649688,0.13990515,105350.0,105340.0,0.73582887]
[1762859650092,0.11743515,105350.0,105340.0,0.73582887]
[1762859650494,0.13990515,105350.0,105340.0,0.73582887]
[1762859652092,0.00037025,105350.0,105340.0,0.73582887]
[1762859652300,0.1395138,105380.0,105370.0,0.05788]
[1762859652484,0.5095138,105380.0,105370.0,0.06007803]
[1762859652690,0.5095138,105380.0,105370.0,0.15500493]
[1762859653493,0.5125138,105380.0,105370.0,0.15500493]
[1762859653686,0.5145138,105380.0,105370.0,0.15500493]
[1762859654496,0.5145138,105380.0,105370.0,0.16838136]
[1762859656403,0.5145138,105380.0,105370.0,0.07345446]
[1762859658097,0.63349255,105380.0,105370.0,0.07345446]
[1762859658495,0.63349255,105380.0,105370.0,0.05964446]
[1762859658699,0.63569058,105380.0,105370.0,6e-08]
[1762859659003,0.1532269,105370.0,105360.0,0.00014245]
[1762859659201,0.53118368,105370.0,105360.0,0.00014245]
[1762859659403,0.53118368,105370.0,105360.0,0.00087512]
[1762859659605,0.53118368,105370.0,105360.0,0.02341512]
[1762859660205,0.53418368,105370.0,105360.0,0.02341512]
[1762859660904,0.89418368,105370.0,105360.0,0.02341512]
[1762859661203,0.78842493,105370.0,105360.0,0.05898305]
[1762859661702,0.89418368,105370.0,105360.0,0.05898305]
[1762859662198,0.78842493,105370.0,105360.0,0.05898305]
[1762859663903,0.78842493,105370.0,105360.0,0.10279305]
[1762859665699,0.78842493,105370.0,105360.0,0.19772895]
[1762859666202,0.78842493,105370.0,105360.0,0.10279305]
[1762859669006,0.89418368,105370.0,105360.0,0.10279305]
[1762859674803,0.89418368,105370.0,105360.0,0.08064305]
[1762859675004,0.89418368,105370.0,105360.0,0.05810305]
[1762859675402,0.89418368,105370.0,105360.0,0.05737038]
[1762859679311,0.89418368,105370.0,105360.0,5e-08]
[1762859679615,0.84959368,105370.0,105360.0,5e-08]
[1762859682916,0.95539113,105370.0,105360.0,5e-08]
[1762859684517,0.95339113,105370.0,105360.0,5e-08]
[1762859684722,0.95739113,105370.0,105360.0,5e-08]
[1762859686229,0.89480303,105370.0,105360.0,0.02187272]
[1762859686421,0.89480303,105370.0,105360.0,0.00073272]
[1762859686728,0.89280303,105370.0,105360.0,0.00073272]
[1762859686930,0.89380303,105370.0,105360.0,0.00073272]
[1762859687530,0.89080303,105370.0,105360.0,0.00073272]
[1762859687733,0.89180303,105370.0,105360.0,0.00073272]
[1762859687933,0.89180303,105370.0,105360.0,0.00073267]
[1762859689234,0.89180303,105370.0,105360.0,0.02187267]
[1762859689435,0.89180303,105370.0,105360.0,0.04402267]
[1762859689935,0.89180303,105370.0,105360.0,0.00073267]
[1762859693127,0.99758113,105370.0,105360.0,0.00073267]
[1762859693622,0.89180303,105370.0,105360.0,0.07782]
[1762859694029,0.89180303,105370.0,105360.0,0.07855267]
[1762859696438,0.99758113,105370.0,105360.0,0.07855267]
[1762859703933,0.89180303,105370.0,105360.0,0.07855267]
[1762859704134,0.99758113,105370.0,105360.0,0.07855267]
[1762859704545,0.1517659,105360.0,105350.0,1e-08]
[1762859704839,0.1517659,105360.0,105320.0,0.33333925]
[1762859704840,0.138943,105330.0,105320.0,0.1631481]
[1762859705033,0.24691913,105330.0,105320.0,0.17799486]
[1762859705242,0.14114103,105330.0,105320.0,0.21508313]
[1762859705542,0.14114103,105330.0,105320.0,0.32086123]
[1762859705742,0.14114103,105330.0,105320.0,0.41583323]
[1762859705944,0.04617803,105330.0,105320.0,0.52161133]
[1762859706244,0.0462734,105330.0,105320.0,0.52361133]
[1762859706644,0.0462734,105330.0,105320.0,0.52661133]
[1762859707035,0.0246134,105330.0,105320.0,0.52661133]
[1762859707241,0.1412364,105330.0,105320.0,0.31505513]
[1762859707440,0.1412364,105330.0,105320.0,0.52661133]
[1762859707634,0.1412364,105330.0,105320.0,0.60091972]
[1762859707836,0.1412364,105330.0,105320.0,0.60191972]
[1762859709245,0.1412364,105330.0,105320.0,0.60091972]
[1762859711543,0.1195764,105330.0,105320.0,0.60091972]
[1762859711748,0.0972564,105330.0,105320.0,0.60091972]
[1762859712443,0.0022934,105330.0,105320.0,0.60091972]
[1762859712746,0.0022934,105330.0,105320.0,0.69586394]
[1762859713742,0.0972564,105330.0,105320.0,0.48430774]
[1762859713941,0.1412364,105330.0,105320.0,0.48430774]
[1762859714141,0.1412364,105330.0,105320.0,0.69586394]
[1762859714448,0.0022934,105330.0,105320.0,1.05574394]
[1762859715346,0.0972564,105330.0,105320.0,1.05574394]
[1762859716346,0.0022934,105330.0,105320.0,1.05574394]
[1762859717240,0.0022934,105330.0,105320.0,1.29310394]
[1762859717442,9.537e-05,105330.0,105320.0,1.05574394]
[1762859717947,0.09505837,105330.0,105320.0,1.05574394]
[1762859719044,0.0972564,105330.0,105320.0,1.05574394]
[1762859719352,0.0022934,105330.0,105320.0,1.05574394]
[1762859720250,0.0022934,105330.0,105320.0,1.29310394]
[1762859720251,9.537e-05,105330.0,105320.0,1.29310394]
[1762859720564,0.09509685,105340.0,105330.0,0.151293]
[1762859720857,0.09509685,105340.0,105330.0,0.25780377]
[1762859720858,0.12052488,105340.0,105330.0,0.25780377]
[1762859721356,0.14180488,105340.0,105330.0,0.25780377]
[1762859722053,0.14180488,105340.0,105330.0,0.25880377]
[1762859722652,0.14180488,105340.0,105330.0,0.15302567]
[1762859722852,0.26043298,105340.0,105330.0,0.15302567]
[1762859723152,0.26043298,105340.0,105330.0,0.25880377]
[1762859723755,0.24758298,105340.0,105330.0,0.25880377]
[1762859723949,0.14180488,105340.0,105330.0,0.25880377]
[1762859724148,0.24758298,105340.0,105330.0,0.25880377]
[1762859724353,0.14180488,105340.0,105330.0,0.25880377]
[1762859725053,0.14180448,105340.0,105330.0,0.25880377]
[1762859726256,0.14180448,105340.0,105330.0,0.16384077]
[1762859727450,0.14180448,105340.0,105330.0,0.25880377]
[1762859730649,0.14180448,105340.0,105330.0,0.16384077]
[1762859732060,0.24758258,105340.0,105330.0,0.16384077]
[1762859734861,0.25437258,105340.0,105330.0,0.16384077]
[1762859737056,0.25437258,105340.0,105330.0,0.05806267]
[1762859737257,0.25437258,105340.0,105330.0,0.16384077]
[1762859737650,0.25437258,105340.0,105330.0,0.15023077]
[1762859738557,0.25437258,105340.0,105330.0,0.04445267]
[1762859738762,0.36015068,105340.0,105330.0,0.02285267]
[1762859738961,0.36015068,105340.0,105330.0,0.00173267]
[1762859739268,0.36015068,105340.0,105330.0,0.04445267]
[1762859740261,0.14959448,105340.0,105330.0,0.16384077]
[1762859740458,0.24858258,105340.0,105330.0,0.16284077]
[1762859741156,0.25537258,105340.0,105330.0,0.14923077]
[1762859741960,0.25437258,105340.0,105330.0,0.14923077]
[1762859742157,0.25537258,105340.0,105330.0,0.14923077]
[1762859742570,0.25537258,105340.0,105330.0,0.04345267]
[1762859743659,0.25537258,105340.0,105330.0,0.14923077]
[1762859744264,0.152343,105330.0,105320.0,0.07064409]
[1762859744465,0.26031913,105330.0,105320.0,0.17715486]
[1762859744850,0.26031913,105330.0,105320.0,0.07137676]
[1762859744851,0.15454103,105330.0,105320.0,0.07137676]
[1762859746774,0.15454103,105330.0,105320.0,0.07237676]
[1762859747565,0.62023438,105330.0,105320.0,0.01511409]
[1762859747969,0.152352,105320.0,105310.0,0.02530983]
[1762859748170,0.26036338,105320.0,105310.0,0.02530983]
[1762859748375,0.26036338,105320.0,105310.0,0.03966265]
[1762859748968,0.26036338,105320.0,105310.0,0.06126265]
[1762859749168,0.05299,105300.0,105290.0,0.14001181]
[1762859749474,0.1400781,105280.0,105270.0,0.05870747]
[1762859749673,0.14227613,105280.0,105270.0,0.16525349]
[1762859749977,0.00219803,105280.0,105270.0,0.60331773]
[1762859750177,0.1400638,105300.0,105290.0,0.05802]
[1762859750381,0.14233357,105300.0,105290.0,0.16556602]
[1762859750581,0.14233357,105300.0,105290.0,0.05975267]
[1762859750969,0.14233357,105300.0,105290.0,0.05875267]
[1762859752082,0.14233357,105300.0,105290.0,0.06075267]
[1762859752584,0.14233357,105300.0,105290.0,0.06175267]
[1762859753980,0.24814692,105300.0,105290.0,0.06175267]
[1762859754988,0.25662692,105300.0,105290.0,0.04859267]
[1762859756388,0.25662692,105300.0,105290.0,0.003]
[1762859756588,0.38244027,105300.0,105290.0,0.003]
[1762859756888,0.27662692,105300.0,105290.0,0.003]
[1762859757283,0.151039,105290.0,105280.0,0.00014245]
[1762859757482,0.61965038,105290.0,105280.0,0.02141245]
[1762859758483,0.61965038,105290.0,105280.0,0.02441245]
[1762859758992,0.61965038,105290.0,105280.0,0.02641245]
[1762859759184,0.61965038,105290.0,105280.0,0.00514245]
[1762859760592,0.61965038,105290.0,105280.0,0.02641245]
[1762859761987,0.61965038,105290.0,105280.0,0.00514245]
[1762859764394,0.61965038,105290.0,105280.0,0.05028512]
[1762859764694,0.60978038,105290.0,105280.0,0.06299512]
[1762859768297,0.24918038,105290.0,105280.0,0.06299512]
[1762859768501,0.60974038,105290.0,105280.0,0.06299512]
[1762859776103,0.60974038,105290.0,105280.0,0.05028512]
[1762859776305,0.60974038,105290.0,105280.0,0.02714512]
[1762859776805,0.60974038,105290.0,105280.0,0.00587512]
[1762859776993,0.60974038,105290.0,105280.0,0.05028512]
[1762859779000,0.60974038,105290.0,105280.0,0.06299512]
[1762859779903,0.60974038,105290.0,105280.0,0.15800322]
[1762859780502,0.00219803,105290.0,105280.0,0.26381657]
[1762859780702,0.13997713,105290.0,105280.0,0.26381657]
[1762859780900,0.13997713,105290.0,105280.0,0.26081657]
[1762859781094,0.13997713,105290.0,105280.0,0.25881657]
[1762859782005,0.13997713,105290.0,105280.0,0.15300322]
[1762859785603,0.13997713,105290.0,105280.0,0.25881657]
[1762859786506,0.04497803,105290.0,105280.0,0.25881657]
[1762859786702,0.13997703,105290.0,105280.0,0.25881657]
[1762859786897,0.00219803,105290.0,105280.0,0.25881657]
[1762859788212,0.00219803,105290.0,105280.0,0.61925657]
[1762859788409,0.00219803,105290.0,105280.0,0.76132276]
[1762859789309,7.174e-05,105300.0,105290.0,0.152129]
[1762859789610,0.09725977,105300.0,105290.0,0.40034392]
[1762859789909,0.14003977,105300.0,105290.0,0.49532421]
[1762859790610,0.14103977,105300.0,105290.0,0.49532421]
[1762859790813,0.14203977,105300.0,105290.0,0.49532421]
[1762859794515,0.14103977,105300.0,105290.0,0.49632421]
[1762859795110,0.14003977,105300.0,105290.0,0.49732421]
[1762859796010,0.14003977,105300.0,105290.0,0.39151086]
[1762859796317,0.24585312,105300.0,105290.0,0.20153157]
[1762859796702,0.25872312,105300.0,105290.0,0.05986267]
[1762859797517,0.25872312,105300.0,105290.0,0.05886267]
[1762859797715,0.24585312,105300.0,105290.0,0.05886267]
[1762859798014,0.24585312,105300.0,105290.0,0.15386167]
[1762859798408,0.24685312,105300.0,105290.0,0.15386167]
[1762859798603,0.24685312,105300.0,105290.0,0.15286167]
[1762859799315,0.14103977,105300.0,105290.0,0.15286167]
[1762859799617,0.14203977,105300.0,105290.0,0.05786267]
[1762859799812,0.24785312,105300.0,105290.0,0.05786267]
[1762859801117,0.24785312,105300.0,105290.0,0.15286167]
[1762859802418,0.24785312,105300.0,105290.0,0.05786267]
[1762859804918,0.35380299,105300.0,105290.0,0.05786267]
[1762859815639,0.35380299,105300.0,105290.0,0.04387267]
[1762859816929,0.35380299,105300.0,105290.0,0.00073267]
[1762859817240,0.149009,105290.0,105280.0,0.39886245]